Cogmind - Beta 14 @@@ ROGUE MODE // 2024.12.07 @ 13:32:24 Player: Darsidian Result: Destroyed by as-69082 with Assembled F-torch Performance ------------- Evolutions (0) 0 Regions Visited (2) 400 Robots Destroyed (32) 160 Value Destroyed (463) 463 Prototype IDs (6) 120 Alien Tech Used (0) 0 Bonus (4) 4 TOTAL SCORE: 1147 Bonus ------- High Alert Combat Kills 4 Cogmind --------- Core Integrity 0/250 Matter 239/300 Energy 100/100 System Corruption 0% Temperature Cool (20) Movement Treading (240) Ox1 Location -10/Mines Parts ------- > --- POWER (1) -------- Backup Power I > --- PROPULSION (2) --- Improved Treads Improved Treads > --- UTILITY (2) ------ High-capacity Storage Unit Experimental Sensor Array > --- WEAPON (2) ------- Rocket Launcher Flail > --- INVENTORY (20) --- Improved Treads Improved Treads Improved Treads Large Battery (200) Medium Matter Pod (100) Large Matter Pod (150) Structural Scanner Signal Interpreter Improved Terrain Scanner Improved Targeting Computer Light Armor Plating Assault Rifle Rocket Launcher Rocket Launcher Datajack Flail Blade Trap Blade Trap Blade Trap Peak State ------------ > --- POWER ------------ Backup Power I > --- PROPULSION ------- Improved Treads Improved Treads > --- UTILITY ---------- High-capacity Storage Unit Experimental Sensor Array > --- WEAPON ----------- Flail Flail > --- INVENTORY -------- Improved Treads Improved Treads Improved Treads Large Battery Medium Matter Pod Large Matter Pod Structural Scanner Signal Interpreter Improved Terrain Scanner Seismic Detector Improved Targeting Computer Light Armor Plating Assault Rifle Rocket Launcher Rocket Launcher Rocket Launcher Datajack Blade Trap Blade Trap Blade Trap [Rating: 21] Favorites ----------- Power Backup Power I Engine Backup Power I Propulsion Improved Treads Treads Improved Treads Utility High-capacity Storage Unit Device Improved Terrain Scanner Storage High-capacity Storage Unit Processor Improved Targeting Computer Weapon Flail Energy Gun Medium Laser Ballistic Gun Light Assault Rifle Launcher Rocket Launcher Impact Weapon Flail Build | -11 -10 -10 ------- Run | Yrd Mat Min Slots Evolved . | . . . Power . | . . . Propulsion . | . . . Utility . | . . . Weapon . | . . . Parts Attached 34 | 7 20 7 Power 3 | 1 1 1 Engine 3 | 1 1 1 Core . | . . . Reactor . | . . . Propulsion 8 | 2 5 1 Treads 8 | 2 5 1 Leg . | . . . Wheel . | . . . Hover . | . . . Flight . | . . . Utility 8 | 2 4 2 Device 3 | 1 . 2 Storage 4 | 1 3 . Processor 1 | . 1 . Hackware . | . . . Protection . | . . . Artifact . | . . . Weapon 15 | 2 10 3 Energy Gun 3 | 2 1 . Energy Cannon . | . . . Ballistic Gun 1 | . 1 . Ballistic Cannon . | . . . Launcher 4 | . 3 1 Special Weapon . | . . . Impact Weapon 7 | . 5 2 Slashing Weapon . | . . . Piercing Weapon . | . . . Special Melee Weapon . | . . . Unidentified Prototypes 1 | . . 1 Parts Lost 5 | . 5 . Power 1 | . 1 . Propulsion 2 | . 2 . Utility . | . . . Weapon 2 | . 2 . Highest Loss Streak 2 | . 2 . To Critical Strikes . | . . . Average Slot Usage (%) 94 | . 94 99 Engine 9 | . 8 13 Treads 28 | . 28 28 Device 6 | . 5 14 Storage 14 | . 14 14 Processor 7 | . 8 . Energy Gun 2 | . 2 . Launcher 5 | . 5 5 Impact Weapon 20 | . 19 22 Peak Build Rating 21 | 9 15 21 Average Rating 13 | 5 13 16 On Entrance 8 | . 9 15 Naked Turns . | . . . Heaviest Build 48 | 15 47 48 Greatest Support 46 | 40 46 46 Greatest Overweight (x) 1 | . 1 1 Average Overweight (x) . | . . . Largest Inventory Capacity 20 | 8 20 20 Average Capacity 15 | 6 15 20 Most Carried 20 | 3 20 20 Average Carried 13 | . 12 19 Final Capacity 20 | 8 20 20 Final Carried 20 | 3 20 19 Class Distribution -------------------- 100% | Mutant Dominant Class ---------------- Mutant | -10/Materials Mutant | -10/Mines Resources | -11 -10 -10 ----------- Run | Yrd Mat Min Matter Collected 878 | 270 568 40 Remotely . | . . . Salvage Created 676 | 90 560 26 Parts 41 | 5 36 . Haulers Intercepted 2 | . 2 . Recyclers Shooed 3 | . 3 . Parts Field Recycled . | . . . Retrieved Matter . | . . . Parts Self-Destructed . | . . . Prevented . | . . . Kills | -11 -10 -10 ------- Run | Yrd Mat Min Combat Hostiles Destroyed 21 | . 18 3 Melee 4 | . 2 2 Guns 1 | . 1 . AOE 13 | . 12 1 Classes Destroyed 10 | 2 7 1 Worker 1 | . 1 . Builder 3 | . 3 . Tunneler 1 | 1 . . Hauler 2 | . 2 . Recycler 4 | 1 3 . Operator 1 | . 1 . Watcher 2 | . 2 . Swarmer 12 | . 12 . Grunt 6 | . 6 . Assembled 3 | . . 3 Best Kill Streak 5 | 1 5 3 Combat Bots Only 3 | . 3 3 Max Kills in Single Turn 4 | 1 4 1 Gunslinging . | . . . Exploded 3 | . 3 1 Melee 1 | . 1 1 Uniques/NPCs Destroyed . | . . . Combat | -11 -10 -10 -------- Run | Yrd Mat Min Hostile Shots Fired 134 | . 119 15 Missed 35 | . 31 4 Damage Taken 1119 | . 950 169 Core 257 | . 193 64 Absorbed by Shields . | . . . Core Remaining (%) 100 | 100 . . Volleys Fired 33 | 7 25 1 Largest 2 | 2 2 1 Hottest 90 | 90 90 33 Shots Fired 47 | 14 32 1 Gun 28 | 14 14 . Cannon . | . . . Launcher 19 | . 18 1 Special . | . . . Kinetic . | . . . Thermal 14 | 7 7 . Explosive 19 | . 18 1 Electromagnetic 14 | 7 7 . Robot Hit Streak 5 | 3 5 . Robot Miss Streak 3 | 2 3 . Penetration Max . | . . . Secondary Targets . | . . . Shots Hit Robots 46 | 9 35 2 Core Hits 33 | 3 25 5 Critical Kills 1 | . 1 . Critical Parts Destroyed 5 | . 5 . Critical Strikes 6 | . 6 . Smash 6 | . 6 . Melee Attacks 46 | . 44 2 Impact 46 | . 44 2 Slashing . | . . . Piercing . | . . . Sneak Attacks 7 | . 7 . Combat Hostiles . | . . . Follow-up Attacks 4 | . 4 . Damage Inflicted 2937 | 134 2484 319 Guns 290 | 134 156 . Cannons . | . . . Explosions 1552 | . 1319 233 Melee 1095 | . 1009 86 Ramming . | . . . Kinetic . | . . . Thermal 128 | 63 65 . Explosive 1552 | . 1319 233 Electromagnetic 162 | 71 91 . Impact 1095 | . 1009 86 Slashing . | . . . Piercing . | . . . Highest Corruption . | . . . Average Corruption . | . . . Corruption Purged . | . . . Corruption Blocked . | . . . Overload Shots . | . . . Overflow Damage 548 | . 548 . Projectiles . | . . . Explosions 85 | . 85 . Melee 463 | . 463 . Knockbacks 7 | . 7 . Impact 7 | . 7 . Kinetic . | . . . Secondary . | . . . Self-Inflicted Damage 108 | . 108 . Shots 4 | . 4 . Rammed . | . . . Targets Rammed . | . . . Kicked . | . . . Crushed . | . . . Highest Temperature 252 | 180 252 . Average Temperature 97 | 82 109 . Received Heat Transfer 364 | . 264 100 Effects 3 | . 3 . Energy Bleed 1 | . 1 . Interference 2 | . 2 . Siege Activations . | . . . Robots Corrupted 6 | . 6 . Combat Hostiles 3 | . 3 . Parts Fried 4 | . 4 . Impact Corruptions 17 | . 17 . Robots Melted . | . . . Combat Hostiles . | . . . Parts Melted 1 | . 1 . Heat Transferred 370 | 185 185 . Parts Sabotaged . | . . . Parts Stolen . | . . . Parts Stripped . | . . . Power Chain Reactions . | . . . Alert | -11 -10 -10 ------- Run | Yrd Mat Min Peak Influence 448 | 10 448 145 Initial 117 | . 6 117 Average 213 | 3 239 118 Maximum Alert Level 2 | . 2 . Low Security (%) 46 | 100 35 100 Level 1 48 | . 58 . Level 2 4 | . 5 . Level 3 . | . . . Level 4 . | . . . Level 5 . | . . . High Security . | . . . Max Security . | . . . Squads Dispatched 4 | . 4 . Investigation 2 | . 2 . Extermination . | . . . Reinforcement 2 | . 2 . Assault . | . . . Garrison . | . . . Intercept . | . . . Searches Triggered . | . . . Construction Impeded . | . . . Haulers Reinforced . | . . . Active Scanning Responses . | . . . Cargo Convoy Interrupts . | . . . Stealth | -11 -10 -10 --------- Run | Yrd Mat Min Distress Signals 4 | . 4 . Communications Jammed . | . . . Distress Signals . | . . . Times Spotted 37 | . 24 13 Peak Tracking Total 14 | . 6 14 Tactical Retreats 1 | . 1 . Traps | -11 -10 -10 ------- Run | Yrd Mat Min Traps Triggered 2 | . 2 . Indirectly . | . . . Trap Hack Attempts . | . . . Triggered . | . . . Disarmed . | . . . Reprogrammed . | . . . Reused . | . . . Traps Extracted . | . . . Installed . | . . . Triggered . | . . . Most Traps Carried 3 | . . 3 Machines | -11 -10 -10 ---------- Run | Yrd Mat Min Machines Disabled 5 | . 5 . Max in Single Turn 2 | . 2 . Machines Repaired . | . . . Machines Dismantled . | . . . Machines Sabotaged . | . . . Overloaded Fab Kills . | . . . Hacking | -11 -10 -10 --------- Run | Yrd Mat Min Machines Accessed 5 | . 5 . Terminals 4 | . 4 . Fabricators . | . . . Repair Stations 1 | . 1 . Recycling Units . | . . . Scanalyzers . | . . . Garrison Access . | . . . Total Hacks 17 | . 17 . Successful 9 | . 9 . Failed 8 | . 8 . Catastrophic 1 | . 1 . Database Lockouts . | . . . Manual 12 | . 12 . Terminals 15 | . 15 . Fabricators . | . . . Repair Stations 2 | . 2 . Recycling Units . | . . . Scanalyzers . | . . . Garrison Access . | . . . Terminal Hacks 7 | . 7 . Prototype ID Bank 4 | . 4 . Branch Access Points 1 | . 1 . Locate Traps 1 | . 1 . Hauler Manifests 1 | . 1 . Fabricator Hacks . | . . . Repair Station Hacks 1 | . 1 . Refit 1 | . 1 . Recycling Unit Hacks . | . . . Scanalyzer . | . . . Garrison Access Hacks . | . . . Unauthorized Hacks 1 | . 1 . Terminals 1 | . 1 . Botnet 1 | . 1 . Fabricators . | . . . Repair Stations . | . . . Recycling Units . | . . . Scanalyzers . | . . . Garrison Access . | . . . Data Cores Recovered . | . . . Used . | . . . Hacking Detections 5 | . 5 . Full Trace Events . | . . . Feedback Events . | . . . Feedback Blocked . | . . . Robot Schematics Acquired . | . . . Robots Built . | . . . Authchips . | . . . Time . | . . . Total Robot Build Rating . | . . . Part Schematics Acquired . | . . . Parts Built . | . . . Authchips . | . . . Time . | . . . Total Part Build Rating . | . . . Parts Repaired . | . . . Time . | . . . Parts Recycled . | . . . Recycled Matter . | . . . Retrieved Matter . | . . . Retrieved Components . | . . . Parts Scanalyzed . | . . . Part Schematics Acquired . | . . . Parts Damaged . | . . . Bothacking | -11 -10 -10 ------------ Run | Yrd Mat Min Used RIF Installer . | . . . Robots Hacked . | . . . Non-combat . | . . . Combat . | . . . Robot Hacks Applied . | . . . Relay Couplers Released . | . . . Fabnet Peak Effective % . | . . . Robots Rewired . | . . . Allies Hacked . | . . . Hacks Repelled . | . . . Allies | -11 -10 -10 -------- Run | Yrd Mat Min Total Allies . | . . . Largest Group . | . . . Highest-Rated Group . | . . . Highest-Rated Ally . | . . . Total Orders . | . . . Ally Attacks . | . . . Total Damage . | . . . Kills . | . . . Allies Corrupted . | . . . Allies Melted . | . . . Intel | -11 -10 -10 ------- Run | Yrd Mat Min Robot Analysis Total . | . . . Derelict Logs Recovered . | . . . Drone Launches . | . . . Drone Recoveries . | . . . Exploration | -11 -10 -10 ------------- Run | Yrd Mat Min Turns Passed 2147 | 103 1786 258 Spaces Moved 1117 | 41 948 128 Core 3 | 3 . . Treads 1114 | 38 948 128 Legs . | . . . Wheels . | . . . Hover . | . . . Flight . | . . . Fastest Speed 50 | 50 160 160 Average Speed 163 | 151 161 180 Slowest Speed 240 | 160 240 240 Overloaded Moves . | . . . Propulsion Burnouts . | . . . Robots Hopped . | . . . Cave-ins Triggered . | . . . Exploration Rate (%) 33 | 5 64 32 Regions Visited 2 Branch Regions 1 Pre-discovered Areas . | . . . Known Exits Taken 1 | . 1 . Unknown Exits Taken 1 | 1 . . Scrap Searched 1 | . . 1 Spaces Dug 38 | . 25 13 Terrain Destroyed 178 | . 165 13 Melee 5 | . 5 . Projectile . | . . . AOE 173 | . 160 13 Terrain Rammed . | . . . Walls Destroyed . | . . . Machines Disabled . | . . . Actions | -11 -10 -10 --------- Run | Yrd Mat Min Total 1327 | 64 1110 153 Wait 49 | 7 42 . Move 1115 | 40 947 128 Hop . | . . . Pick Up 35 | 3 25 7 Fast Attach 8 | 7 1 . Attach 5 | . 4 1 Detach 2 | . 1 1 Swap 21 | . 15 6 Drop 19 | . 12 7 Fire 33 | 7 25 1 Melee 40 | . 38 2 Ram . | . . . Kick . | . . . Crush . | . . . Escape Stasis . | . . . Rewire . | . . . Trap . | . . . Miscellaneous . | . . . Route ------- -11/Scrapyard -10/Materials (discovered 2 exits: [*Mat] / *Min) -10/Mines History --------- Turn | Location | Event 4 | -11/Scrapyard | Discovered new exit (range 15) 104 | -11/Scrapyard | Entered Materials 300 | -10/Materials | Build established: Mutant 390 | -10/Materials | Discovered new exit (range 9) 749 | -10/Materials | Core integrity fell below 50% 890 | -10/Materials | Identified exit to Mines 1167 | -10/Materials | Discovered new exit (range 14) 1890 | -10/Materials | Entered Mines 1968 | -10/Mines | Found a hidden stash of uninstalled traps 2056 | -10/Mines | Found a damaged Exp. Sensor Array with a note attached 2061 | -10/Mines | Found Prototype Device 2062 | -10/Mines | Identified Exp. Sensor Array 2110 | -10/Mines | Assembled infested the area 2138 | -10/Mines | Core integrity fell below 20% 2148 | -10/Mines | Destroyed by as-69082 with Assembled F-torch Last Messages --------------- 01992_ R-06 Scavenger collects Terrain Scan Processor. 02056_ A damaged part is partially visible under some rubble. There's a note attached: "Everyone keeps telling us we should avoid high-traffic areas because that's where patrols are more likely to show up, but that doesn't do us much good if we can't spot those areas until they're on top of us... With this we can! Deliver it to Megawrench for repairs then we'll never be afraid of an ambush while sneaking around Materials again, ha." 02061_ Dropped Imp. Treads. 02061_ Acquired Prototype Device. 02062_ Identified Exp. Sensor Array. 02091_ Dropped Seismic Detector. 02110_ ALERT: Infestation in the mines, dispatching Demolisher response squad. 02136_ as-60889 destroyed. 02140_ as-06551 destroyed. 02141_ as-91357 destroyed. 02142_ as-83601 destroyed. 02144_ as-02848 destroyed. 02144_ Core Extractor disabled. Map ----- +----------------------------------------------------+ | | | | | | | | | | | | | | | | | | | | | | | | | ???????????????????????????????????????????? | | ??????????????????????????????????????####?? | | ??????????????????????####??####?????# ##? | | ?????????????????????## #### ##???# #? | | ?????????????????##### ## ##?# #? | | ?????????????????# ## #?? | | ?????????????????# ! #??? | | ?????????????????# ## ##### ##??? | | ?????????????????# ?######???## #???? | | ?????????????????# #?????????## #???? | | ?????????????????# ?#?????????## ##???? | | ????????? ??????## #???????### ##????? | | ?????????"""????# ######## ##?????? | | ?????????""" #### % a% @ ##??????? | | ??????? a % ######## ##???????? | | ??? % ? #???????##? ##???????? | | ?????# ##### ###????????## #???????? | | ?????## ????????# #???????????## #???????? | | ????????????????# #????????????# ##???????? | | ????????????##### ##???????????# #????????? | | ???????# ## #???????????# ####?????? | | ???????# !! #???????????# #?????? | | ???????#?? # ! #???????????##### #?????? | | ???? ???# ! #???????????????# #?????? | | ??? #???????# !! #???????????????# ##????? | | ????????????# #??????????###### ##???? | | ????????????## ##?????????## ## ##??? | | ?????????????# #??????????#= ! #??? | | ?????????????## ##??????????##! #??? | | ??????????????####????????????## ##??? | | ???????????????????????????????# ###???? | | ???????????????????????????????## #?????? | | ????????????????????????????????### #?????? | | ??????????????????????????????????# #?????? | | ??????????????????????????????????# #?????? | | ??????????????????????????????????# #?????? | | ?????????????????????????????###### #?????? | | ????????????????????????????## ##????? | +----------------------------------------------------+ Best States ------------- Heat Dissipation 25 Energy Generation 10 Energy Capacity 250 Matter Stores 300 Matter Capacity 300 Sight Range 16 Robot Scan Range 20 Terrain Scan Range 16 Terrain Scan Density 10 Evasion (%) 40 Targeting Accuracy 6 Recoil Reduction 2 Item Schematics ----------------- None Robot Schematics ------------------ None Fabricated ------------ Nothing Alien Tech Used ----------------- None Achievements -------------- None Challenges ------------ None Game ------ Seed NullTechCompactor Manual? 0 Play Time 00:26:16 Cumulative 196.6 hours Start 2024.12.07 @ 13:06:54 End 2024.12.07 @ 13:32:24 Sessions 1 Manual Loads 0 Difficulty Rogue Special Mode None Game No. 59 Rogue 59 Adventurer 0 Explorer 0 Win Type - Total 0 Types 0/0/0/0/0/0/0/0/0 Lore% 25 Gallery% 53 Achievement% 45 Wizard Run 0 Options --------- Layout 0 ASCII 0 Keyboard 0 Movement Mouse Keybinds 0 Fullscreen 1 Font 36/Smallcaps Map View 76x50 Zoom Use 0% Tactical HUD 1 Map Filters NONE Filters NONE Steam X RUN: b9ecd590-f72f-475c-aacf-793fcb327b63